[Event "36th Balaton GM 2018"]
[Site "Balatonlelle"]
[Date "2018.06.12"]
[Round "1.5"]
[White "Akshat, Khamparia"]
[Black "Kavutskiy, Konstantin"]
[Result "0-1"]
[ECO "E73"]
[WhiteElo "2403"]
[BlackElo "2397"]
[Annotator "ChessBase"]
[PlyCount "96"]
[EventDate "2018.06.12"]
[EventType "swiss"]
[EventCountry "HUN"]
[SourceTitle "playchess.com"]
[Source "ChessBase"]
[SourceQuality "1"]
[TimeControl "40/5400+30:1800+30"]

1. d4 {[%emt 0:00:05]} Nf6 {[%emt 0:00:36]} 2. c4 {[%emt 0:00:06]} g6 {[%emt 0:00:06]} 3. Nc3 {[%emt 0:00:06]} Bg7 {[%emt 0:00:06]} 4. e4 {[%emt 0:00:04]} d6 {[%emt 0:00:07]} 5. Be2 {[%emt 0:00:06]} O-O {[%emt 0:00:09]} 6. Bg5 {[%emt 0:00:08]} Na6 {[%emt 0:00:46]} 7. f4 {[%emt 0:00:28]} c6 {[%emt 0:00:29]} 8. Nf3 {[%emt 0:00:16]} Nc7 {[%emt 0:01:23]} 9. Bh4 {[%emt 0:00:07]} b5 {[%emt 0:05:22]} 10. e5 {[%emt 0:06:03]} Ng4 {[%emt 0:00:22]} 11. Qd2 {[%emt 0:01:34]} dxe5 {[%emt 0:00:27]} 12. fxe5 {[%emt 0:17:39]} Ne6 {[%emt 0:03:07]} 13. Ne4 {[%emt 0:14:28]} Bh6 {[%emt 0:03:26]} 14. Qc3 {[%emt 0:08:01]} Ne3 {[%emt 0:05:26]} 15. Kf2 {[%emt 0:08:18]} Ng4+ {[%emt 0:06:30]} 16. Kf1 {[%emt 0:01:24]} Nf4 {[%emt 0:12:58]} 17. h3 {[%emt 0:05:55]} Nxe2 {[%emt 0:00:06]} 18. Kxe2 {[%emt 0:00:23]} Ne3 {[%emt 0:00:07]} 19. g4 {[%emt 0:04:44]} Nxc4 {[%emt 0:02:05]} 20. b3 {[%emt 0:03:40]} Nb6 {[%emt 0:09:43]} 21. Qxc6 {[%emt 0:06:50]} Be6 {[%emt 0:00:23]} 22. Qxb5 {[%emt 0:00:37]} Bd5 {[%emt 0:02:07]} 23. Bxe7 {[%emt 0:04:47]} Qxe7 {[%emt 0:10:58]} 24. Nf6+ {[%emt 0:00:05]} Kh8 {[%emt 0:00:04]} 25. Nxd5 {[%emt 0:00:18]} Nxd5 {[%emt 0:03:18]} 26. Qxd5 {[%emt 0:00:05]} Rac8 {[%emt 0:00:37]} 27. Qe4 {[%emt 0:04:42]} f5 {[%emt 0:03:53]} 28. Qd3 {[%emt 0:01:06]} Qb4 {[%emt 0:03:51]} 29. g5 {[%emt 0:04:40]} Rc3 {[%emt 0:00:57]} 30. Qd2 {[%emt 0:01:05]} Qb5+ {[%emt 0:04:31]} 31. Kf2 {[%emt 0:01:07]} Qc6 {[%emt 0:01:21]} 32. d5 {[%emt 0:00:25]} Qc5+ {[%emt 0:00:34]} 33. Kg3 {[%emt 0:00:41]} Bxg5 {[%emt 0:01:40]} 34. Qxg5 {[%emt 0:01:20]} f4+ {[%emt 0:00:15]} 35. Kh2 {[%emt 0:02:39]} Rc2+ {[%emt 0:01:15]} 36. Qg2 {[%emt 0:00:06]} Rxg2+ {[%emt 0:00:08]} 37. Kxg2 {[%emt 0:00:02]} Qc2+ {[%emt 0:01:04]} 38. Kg1 {[%emt 0:00:05]} Rc8 {[%emt 0:02:31]} 39. Rh2 {[%emt 0:00:35]} Qc5+ {[%emt 0:00:59]} 40. Rf2 {[%emt 0:00:00]} Qxd5 {[%emt 0:00:12]} 41. Re1 {[%emt 0:00:30]} Rc6 {[%emt 0:01:41]} 42. Kg2 {[%emt 0:00:13]} Rc3 {[%emt 0:05:01]} 43. Ree2 {[%emt 0:03:11]} Re3 {[%emt 0:01:11]} 44. Rd2 {[%emt 0:00:04]} Qa8 {[%emt 0:01:32]} 45. Rd4 {[%emt 0:01:28]} g5 {[%emt 0:00:13]} 46. Ra4 {[%emt 0:00:16]} h5 {[%emt 0:00:41]} 47. Rc4 {[%emt 0:00:43]} Kg7 {[%emt 0:01:36]} 48. e6 {[%emt 0:01:24]} Kf6 {[%emt 0:01:31]} 0-1

[Event "36th Balaton GM 2018"]
[Site "Balatonlelle"]
[Date "2018.06.13"]
[Round "2.2"]
[White "Erturan, Yakup"]
[Black "Akshat, Khamparia"]
[Result "1/2-1/2"]
[ECO "B39"]
[WhiteElo "2384"]
[BlackElo "2403"]
[Annotator "ChessBase"]
[PlyCount "30"]
[EventDate "2018.06.12"]
[EventType "swiss"]
[EventCountry "HUN"]
[SourceTitle "playchess.com"]
[Source "ChessBase"]
[SourceQuality "1"]
[TimeControl "40/5400+30:1800+30"]

1. e4 {[%emt 0:00:07]} c5 {[%emt 0:02:04]} 2. Nf3 {[%emt 0:00:24]} Nc6 {[%emt 0:00:11]} 3. d4 {[%emt 0:00:17]} cxd4 {[%emt 0:00:12]} 4. Nxd4 {[%emt 0:00:05]} g6 {[%emt 0:00:41]} 5. c4 {[%emt 0:00:23]} Bg7 {[%emt 0:00:06]} 6. Be3 {[%emt 0:00:05]} Nf6 {[%emt 0:00:13]} 7. Nc3 {[%emt 0:00:06]} Ng4 {[%emt 0:00:13]} 8. Qxg4 {[%emt 0:00:06]} Nxd4 {[%emt 0:00:03]} 9. Qd1 {[%emt 0:00:11]} Ne6 {[%emt 0:00:06]} 10. Qd2 {[%emt 0:01:03]} O-O {[%emt 0:02:54]} 11. Rc1 {[%emt 0:02:22]} b6 {[%emt 0:03:34]} 12. Be2 {[%emt 0:00:26]} Bb7 {[%emt 0:00:49]} 13. O-O {[%emt 0:00:25]} Nc5 {[%emt 0:02:12]} 14. f3 {[%emt 0:01:09]} a5 {[%emt 0:00:48]} 15. b3 {[%emt 0:03:31]} f5 {[%emt 0:04:58]} 1/2-1/2

[Event "36th Balaton GM 2018"]
[Site "Balatonlelle"]
[Date "2018.06.14"]
[Round "3"]
[White "Akshat, Khamparia"]
[Black "Koksal, Ege"]
[Result "0-1"]
[ECO "E21"]
[WhiteElo "2403"]
[BlackElo "2356"]
[Annotator "ChessBase"]
[PlyCount "110"]
[EventDate "2018.06.12"]
[EventType "swiss"]
[EventCountry "HUN"]
[SourceTitle "playchess.com"]
[Source "ChessBase"]
[SourceQuality "1"]
[TimeControl "40/5400+30:1800+30"]

1. d4 {[%emt 0:00:18]} Nf6 {[%emt 0:00:40]} 2. c4 {[%emt 0:00:06]} e6 {[%emt 0:00:04]} 3. Nc3 {[%emt 0:00:02]} Bb4 {[%emt 0:01:26]} 4. Nf3 {[%emt 0:00:33]} O-O {[%emt 0:00:34]} 5. g3 {[%emt 0:00:17]} b6 {[%emt 0:07:08]} 6. Bg2 {[%emt 0:02:05]} Bb7 {[%emt 0:02:08]} 7. O-O {[%emt 0:01:43]} Bxc3 {[%emt 0:00:04]} 8. bxc3 {[%emt 0:00:05]} d6 {[%emt 0:00:03]} 9. Re1 {[%emt 0:03:31]} Nbd7 {[%emt 0:00:08]} 10. Qc2 {[%emt 0:01:53]} Be4 {[%emt 0:00:51]} 11. Qb3 {[%emt 0:00:31]} Bb7 {[%emt 0:02:34]} 12. a4 {[%emt 0:08:17]} a5 {[%emt 0:00:41]} 13. Bh3 {[%emt 0:00:52]} h6 {[%emt 0:03:22]} 14. Nd2 {[%emt 0:02:24]} Ne4 {[%emt 0:04:17]} 15. Nxe4 {[%emt 0:02:34]} Bxe4 {[%emt 0:00:02]} 16. f3 {[%emt 0:00:05]} Bb7 {[%emt 0:00:03]} 17. e4 {[%emt 0:00:33]} Qe7 {[%emt 0:09:48]} 18. Ra2 {[%emt 0:05:00]} Rad8 {[%emt 0:00:33]} 19. Be3 {[%emt 0:08:40]} Kh8 {[%emt 0:07:04]} 20. Bf1 {[%emt 0:02:48]} f5 {[%emt 0:05:05]} 21. exf5 {[%emt 0:06:30]} Bxf3 {[%emt 0:05:24]} 22. fxe6 {[%emt 0:01:52]} Qxe6 {[%emt 0:00:08]} 23. Bf2 {[%emt 0:00:30]} Qf7 {[%emt 0:04:45]} 24. Qc2 {[%emt 0:04:38]} Bc6 {[%emt 0:02:20]} 25. d5 {[%emt 0:02:25]} Bb7 {[%emt 0:02:49]} 26. Bd4 {[%emt 0:03:13]} Ne5 {[%emt 0:00:01]} 27. Bxe5 {[%emt 0:24:06]} dxe5 {[%emt 0:00:00]} 28. Qe4 {[%emt 0:00:18]} Bc8 {[%emt 0:22:10]} 29. Bd3 {[%emt 0:02:29]} Bf5 {[%emt 0:07:25]} 30. Qxf5 {[%emt 0:01:16]} Qxf5 {[%emt 0:00:05]} 31. Bxf5 {[%emt 0:00:03]} Rxf5 {[%emt 0:00:05]} 32. Rf2 {[%emt 0:01:26]} Rdf8 {[%emt 0:00:32]} 33. Rxf5 {[%emt 0:00:46]} Rxf5 {[%emt 0:00:04]} 34. Kg2 {[%emt 0:02:27]} Kg8 {[%emt 0:00:36]} 35. Rb1 {[%emt 0:06:24]} e4 {[%emt 0:05:33]} 36. Re1 {[%emt 0:02:08]} Rf3 {[%emt 0:00:07]} 37. Rxe4 {[%emt 0:02:17]} Rxc3 {[%emt 0:00:05]} 38. Re8+ {[%emt 0:02:24]} Kf7 {[%emt 0:00:07]} 39. Rc8 {[%emt 0:00:06]} Rxc4 {[%emt 0:00:59]} 40. d6 {[%emt 0:00:00]} Ke6 {[%emt 0:00:57]} 41. dxc7 {[%emt 0:00:53]} Kd6 {[%emt 0:02:13]} 42. Rd8+ {[%emt 0:01:45]} Kxc7 {[%emt 0:00:25]} 43. Rg8 {[%emt 0:00:05]} g5 {[%emt 0:20:12]} 44. Rg7+ {[%emt 0:00:34]} Kb8 {[%emt 0:00:33]} 45. Rg6 {[%emt 0:00:17]} Kb7 {[%emt 0:00:12]} 46. Rxh6 {[%emt 0:00:38]} g4 {[%emt 0:01:51]} 47. h4 {[%emt 0:02:16]} gxh3+ {[%emt 0:00:39]} 48. Kxh3 {[%emt 0:00:44]} Rxa4 {[%emt 0:00:04]} 49. g4 {[%emt 0:00:06]} Ra1 {[%emt 0:01:16]} 50. g5 {[%emt 0:00:12]} Rg1 {[%emt 0:00:26]} 51. Kh4 {[%emt 0:01:33]} a4 {[%emt 0:00:32]} 52. Rf6 {[%emt 0:00:18]} a3 {[%emt 0:02:19]} 53. Rf2 {[%emt 0:00:21]} b5 {[%emt 0:00:16]} 54. Kh5 {[%emt 0:00:03]} Kb6 {[%emt 0:00:37]} 55. g6 {[%emt 0:00:20]} b4 {[%emt 0:00:28]} 0-1

[Event "36th Balaton GM 2018"]
[Site "Balatonlelle"]
[Date "2018.06.14"]
[Round "3"]
[White "Kavutskiy, Konstantin"]
[Black "Erturan, Yakup"]
[Result "1/2-1/2"]
[ECO "D10"]
[WhiteElo "2397"]
[BlackElo "2384"]
[Annotator "NA"]
[PlyCount "73"]
[EventDate "2018.06.12"]
[EventType "swiss"]
[EventCountry "HUN"]
[SourceTitle "playchess.com"]
[Source "ChessBase"]
[SourceQuality "1"]
[TimeControl "40/5400+30:1800+30"]

1. d4 {[%emt 0:11:03]} d5 {[%emt 0:00:55]} 2. c4 {[%emt 0:00:10]} c6 {[%emt 0:00:12]} 3. cxd5 {[%emt 0:00:19]} cxd5 {[%emt 0:00:08]} 4. Bg5 {[%emt 0:00:12]} Qb6 {[%emt 0:05:34]} 5. Nc3 {[%emt 0:01:52]} Nc6 {[%emt 0:00:45]} 6. Nf3 {[%emt 0:01:56]} Bg4 {[%emt 0:10:27]} 7. e3 {[%emt 0:09:35]} Bxf3 {[%emt 0:13:22]} 8. gxf3 {[%emt 0:00:16]} e6 {[%emt 0:17:09]} 9. a3 {[%emt 0:01:56]} Be7 {[%emt 0:03:29]} 10. Bf4 $11 {[%emt 0:02:42]} Nf6 {[%emt 0:01:59]} 11. Bd3 {[%emt 0:01:29]} O-O {[%emt 0:00:44]} 12. O-O {[%emt 0:03:56]} Nh5 {[%emt 0:06:41]} 13. Bg3 {[%emt 0:00:07]} a6 {[%emt 0:03:51]} 14. f4 {[%emt 0:07:32]} g6 {[%emt 0:01:35]} 15. f5 {[%emt 0:03:48]} Nxg3 {[%emt 0:02:00]} 16. hxg3 {[%emt 0:01:01]} gxf5 {[%emt 0:05:43]} 17. Qh5 {[%emt 0:04:57]} Kg7 {[%emt 0:03:23]} 18. g4 {[%emt 0:03:51]} Rg8 {[%emt 0:07:25]} 19. gxf5 {[%emt 0:04:10]} Nxd4 {[%emt 0:05:25]} 20. Kh1 {[%emt 0:06:20]} Nxf5 {[%emt 0:00:41]} 21. Rg1+ {[%emt 0:02:20]} Kh8 {[%emt 0:00:48]} 22. Qxf7 {[%emt 0:07:15]} Qd6 {[%emt 0:00:11]} 23. Rxg8+ {[%emt 0:01:48]} Rxg8 {[%emt 0:00:06]} 24. Rg1 {[%emt 0:00:06]} Rxg1+ {[%emt 0:00:06]} 25. Kxg1 {[%emt 0:00:05]} Ng7 {[%emt 0:00:37]} 26. e4 {[%emt 0:08:57]} dxe4 {[%emt 0:06:43]} 27. Bxe4 {[%emt 0:00:08]} b6 {[%emt 0:00:28]} 28. Bf3 {[%emt 0:00:41]} Qd8 {[%emt 0:00:22]} 29. Be2 {[%emt 0:02:20]} a5 {[%emt 0:00:16]} 30. Bc4 {[%emt 0:06:23]} Qf8 {[%emt 0:01:19]} 31. Bxe6 {[%emt 0:00:29]} Nxe6 {[%emt 0:00:05]} 32. Qxe6 {[%emt 0:00:05]} Qg8+ {[%emt 0:00:04]} 33. Qxg8+ {[%emt 0:00:08]} Kxg8 {[%emt 0:00:04]} 34. Nd5 {[%emt 0:00:37]} Bc5 {[%emt 0:00:12]} 35. b4 {[%emt 0:00:11]} axb4 {[%emt 0:00:40]} 36. axb4 {[%emt 0:00:07]} Bd4 {[%emt 0:00:20]} 37. Nxb6 {[%emt 0:00:35]} 1/2-1/2

[Event "36th Balaton GM 2018"]
[Site "Balatonlelle"]
[Date "2018.06.15"]
[Round "4"]
[White "Soham Das"]
[Black "Akshat, Khamparia"]
[Result "1/2-1/2"]
[ECO "B81"]
[WhiteElo "2355"]
[BlackElo "2403"]
[Annotator "NA"]
[PlyCount "42"]
[EventDate "2018.06.12"]
[EventType "swiss"]
[EventCountry "HUN"]
[SourceTitle "playchess.com"]
[Source "ChessBase"]
[SourceQuality "1"]
[TimeControl "40/5400+30:1800+30"]

1. e4 {[%emt 0:01:29]} c5 {[%emt 0:00:37]} 2. Nf3 {[%emt 0:00:27]} d6 {[%emt 0:00:07]} 3. d4 {[%emt 0:00:18]} cxd4 {[%emt 0:00:05]} 4. Nxd4 {[%emt 0:00:03]} Nf6 {[%emt 0:00:06]} 5. Nc3 {[%emt 0:00:04]} e6 {[%emt 0:00:26]} 6. g4 {[%emt 0:02:15]} e5 {[%emt 0:00:06]} 7. Bb5+ {[%emt 0:03:59]} Bd7 {[%emt 0:02:49]} 8. Bxd7+ {[%emt 0:00:24]} Qxd7 {[%emt 0:00:09]} 9. Nf5 {[%emt 0:01:10]} h5 {[%emt 0:01:34]} 10. gxh5 {[%emt 0:08:30]} Nxh5 {[%emt 0:10:02]} 11. Bh6 {[%emt 0:15:10]} Nc6 {[%emt 0:11:02]} 12. Qxh5 {[%emt 0:16:09]} Ne7 {[%emt 0:02:56]} 13. Nxe7 {[%emt 0:22:07]} Rxh6 {[%emt 0:08:52]} 14. Qg5 {[%emt 0:13:35]} Qxe7 {[%emt 0:12:23]} 15. Qe3 {[%emt 0:00:08]} Qd7 {[%emt 0:10:18]} 16. O-O-O {[%emt 0:01:10]} Be7 {[%emt 0:03:06]} 17. Kb1 {[%emt 0:01:16]} Rh3 {[%emt 0:04:40]} 18. f3 {[%emt 0:01:22]} Kf8 {[%emt 0:00:46]} 19. Nd5 {[%emt 0:01:27]} b6 {[%emt 0:00:36]} 20. Rd3 g6 21. Rc3 {[%emt 0:04:12]} Rc8 1/2-1/2

[Event "36th Balaton GM 2018"]
[Site "Balatonlelle"]
[Date "2018.06.16"]
[Round "5"]
[White "Kavutskiy, Konstantin"]
[Black "Soham Das"]
[Result "1-0"]
[ECO "B10"]
[WhiteElo "2397"]
[BlackElo "2355"]
[Annotator "NA"]
[PlyCount "63"]
[EventDate "2018.06.12"]
[EventType "swiss"]
[EventCountry "HUN"]
[SourceTitle "playchess.com"]
[Source "ChessBase"]
[SourceQuality "1"]
[TimeControl "40/5400+30:1800+30"]

1. e4 {[%emt 0:05:00]} c6 {[%emt 0:11:47]} 2. Nc3 {[%emt 0:00:10]} d5 {[%emt 0:00:13]} 3. Nf3 {[%emt 0:00:06]} Nf6 {[%emt 0:00:21]} 4. e5 {[%emt 0:00:07]} Ne4 {[%emt 0:00:04]} 5. Ne2 {[%emt 0:00:12]} Qb6 {[%emt 0:00:05]} 6. d4 {[%emt 0:00:06]} e6 {[%emt 0:01:51]} 7. Nfg1 {[%emt 0:01:39]} f6 {[%emt 0:01:00]} 8. f3 {[%emt 0:00:10]} Ng5 {[%emt 0:00:04]} 9. exf6 {[%emt 0:00:06]} gxf6 {[%emt 0:00:07]} 10. f4 {[%emt 0:01:06]} Ne4 {[%emt 0:05:11]} 11. Ng3 {[%emt 0:03:54]} c5 {[%emt 0:06:01]} 12. Bd3 {[%emt 0:05:17]} Nxg3 {[%emt 0:41:03]} 13. hxg3 {[%emt 0:00:23]} cxd4 {[%emt 0:02:43]} 14. Nf3 {[%emt 0:04:22]} Nc6 {[%emt 0:01:30]} 15. Bxh7 {[%emt 0:10:54]} Kd8 {[%emt 0:01:13]} 16. Rh4 {[%emt 0:02:21]} Kc7 {[%emt 0:05:10]} 17. c3 {[%emt 0:02:32]} dxc3 {[%emt 0:06:25]} 18. bxc3 {[%emt 0:00:06]} Bc5 {[%emt 0:03:36]} 19. Nd4 {[%emt 0:17:59]} Nxd4 {[%emt 0:06:37]} 20. cxd4 {[%emt 0:00:06]} Qb4+ {[%emt 0:00:32]} 21. Bd2 {[%emt 0:03:29]} Qxd4 {[%emt 0:00:07]} 22. Ba5+ {[%emt 0:00:05]} b6 {[%emt 0:01:25]} 23. Qxd4 {[%emt 0:00:06]} Bxd4 {[%emt 0:00:02]} 24. Rd1 {[%emt 0:00:30]} e5 {[%emt 0:03:06]} 25. Bb4 {[%emt 0:03:46]} Ba6 {[%emt 0:01:12]} 26. Bg6 {[%emt 0:01:37]} Bc4 {[%emt 0:01:25]} 27. Be7 {[%emt 0:04:28]} Bc3+ {[%emt 0:00:36]} 28. Kf2 {[%emt 0:00:06]} e4 {[%emt 0:00:29]} 29. Ke3 {[%emt 0:02:38]} Kd7 {[%emt 0:00:25]} 30. Ba3 {[%emt 0:00:40]} Ke6 {[%emt 0:00:30]} 31. f5+ {[%emt 0:01:20]} Ke5 {[%emt 0:00:22]} 32. Rxe4+ {[%emt 0:00:24]} 1-0

[Event "36th Balaton GM 2018"]
[Site "Balatonlelle"]
[Date "2018.06.17"]
[Round "6"]
[White "McPhillips, Joseph"]
[Black "Nagy, Bence"]
[Result "1/2-1/2"]
[ECO "B53"]
[WhiteElo "2399"]
[BlackElo "2354"]
[Annotator "NA"]
[PlyCount "109"]
[EventDate "2018.06.12"]
[EventType "swiss"]
[EventCountry "HUN"]
[SourceTitle "playchess.com"]
[Source "ChessBase"]
[SourceQuality "1"]
[TimeControl "40/5400+30:1800+30"]

1. e4 {[%emt 0:04:29]} c5 {[%emt 0:00:52]} 2. Nf3 {[%emt 0:00:05]} d6 {[%emt 0:00:14]} 3. d4 {[%emt 0:00:05]} cxd4 {[%emt 0:00:08]} 4. Qxd4 {[%emt 0:00:04]} e5 {[%emt 0:04:49]} 5. Bb5+ {[%emt 0:01:32]} Nc6 {[%emt 0:03:56]} 6. Qd3 {[%emt 0:01:37]} Be7 {[%emt 0:05:19] B53: Sicilian: 2...d6: Lines with Qxd4} 7. c4 {[%emt 0:02:04]} (7. O-O a6 8. Bxc6+ bxc6 9. Rd1 Qc7 10. c4 Bg4 11. h3 Bxf3 12. Qxf3 Nf6 13. Nc3 O-O 14. b3 Rfd8 15. Bg5 Ne8 16. Bxe7 Qxe7 17. Rd3 Nc7 18. Rad1 Ne6 {½-½ (18) Yandemirov,V (2423)-Mikhaletz,L (2428) Alushta 2013}) 7... Nf6 {[%emt 0:01:01]} 8. h3 {[%emt 0:02:49]} O-O {[%emt 0:00:57]} 9. O-O {[%emt 0:00:04]} Be6 {[%emt 0:01:40]} 10. Nc3 {[%emt 0:05:39]} Nb4 {[%emt 0:11:24]} 11. Qe2 {[%emt 0:00:17]} a6 {[%emt 0:01:10]} 12. Ba4 {[%emt 0:00:07]} Qc7 $146 {[%emt 0:01:39]} ({Predecessor:} 12... Rc8 13. Bb3 Qc7 14. a3 {0-1 (48) Podolsky,A (2270)-Doluhanova,E (2287) Chervonograd 2012}) 13. Bb3 {[%emt 0:07:27]} a5 {[%emt 0:03:17]} 14. Rd1 {[%emt 0:06:22]} Rac8 {[%emt 0:03:29]} 15. a3 {[%emt 0:06:13]} Na6 {[%emt 0:00:53]} 16. Nb5 {[%emt 0:00:09]} Qb8 {[%emt 0:03:03]} 17. Bg5 {[%emt 0:04:36]} Rc6 {[%emt 0:05:42]} 18. Rac1 {[%emt 0:04:28]} Rfc8 {[%emt 0:03:44]} 19. Be3 {[%emt 0:01:51]} Nc5 {[%emt 0:07:12]} 20. Bc2 {[%emt 0:00:29]} a4 {[%emt 0:05:41]} 21. Nd2 {[%emt 0:05:12]} Qa8 {[%emt 0:02:23]} 22. Nc3 {[%emt 0:04:24]} Nb3 {[%emt 0:01:56]} 23. Bxb3 {[%emt 0:07:13]} axb3 {[%emt 0:00:22]} 24. Nb5 {[%emt 0:00:09]} b6 {[%emt 0:01:17]} 25. Qf1 {[%emt 0:07:25]} Qa6 {[%emt 0:02:51]} 26. a4 {[%emt 0:05:44]} h6 {[%emt 0:02:51]} 27. a5 {[%emt 0:04:07]} bxa5 {[%emt 0:00:45]} 28. Na7 {[%emt 0:00:17]} a4 {[%emt 0:00:42]} 29. f3 {[%emt 0:01:30]} Nd7 {[%emt 0:01:56]} 30. Nxc6 {[%emt 0:01:35]} Rxc6 {[%emt 0:00:42]} 31. Qf2 {[%emt 0:01:53]} Nc5 {[%emt 0:03:04]} 32. Qe2 {[%emt 0:01:39]} Nd7 {[%emt 0:04:41]} 33. Qf2 {[%emt 0:00:02]} Bd8 {[%emt 0:00:35]} 34. Kh2 {[%emt 0:03:46]} Bb6 {[%emt 0:03:35]} 35. Nb1 {[%emt 0:00:26]} Bxe3 {[%emt 0:00:55]} 36. Qxe3 {[%emt 0:00:02]} Bxc4 {[%emt 0:01:05]} 37. Na3 {[%emt 0:01:55]} Nb6 {[%emt 0:02:09]} 38. Qc3 {[%emt 0:01:57]} Qc8 {[%emt 0:00:55]} 39. Qa5 {[%emt 0:03:58]} d5 {[%emt 0:03:51]} 40. Rc3 {[%emt 0:00:00]} d4 {[%emt 0:01:46]} 41. Rcc1 {[%emt 0:04:17]} Be2 {[%emt 0:03:56]} 42. Rxc6 {[%emt 0:03:03]} Qxc6 {[%emt 0:00:27]} 43. Rd2 {[%emt 0:00:01]} d3 {[%emt 0:00:52]} 44. Qxe5 {[%emt 0:00:02]} Nc4 {[%emt 0:00:59]} 45. Nxc4 {[%emt 0:04:38]} Qxc4 {[%emt 0:00:02]} 46. Qd6 {[%emt 0:00:17]} h5 {[%emt 0:02:04]} 47. h4 {[%emt 0:05:45]} g6 {[%emt 0:00:38]} 48. Qb8+ {[%emt 0:01:07]} Kg7 {[%emt 0:02:50]} 49. Qe5+ {[%emt 0:00:12]} Kf8 {[%emt 0:01:44]} 50. Qd6+ $11 {[%emt 0:01:14]} Ke8 {[%emt 0:00:15]} 51. Kg3 {[%emt 0:01:17]} Qc1 {[%emt 0:05:05]} 52. Qe5+ {[%emt 0:02:21]} Kf8 {[%emt 0:00:41]} 53. Qh8+ {[%emt 0:00:02]} Ke7 {[%emt 0:00:07]} 54. Qe5+ {[%emt 0:00:02]} Kf8 {[%emt 0:00:06]} 55. Qh8+ {[%emt 0:00:03]} 1/2-1/2

[Event "36th Balaton GM 2018"]
[Site "Balatonlelle"]
[Date "2018.06.17"]
[Round "6"]
[White "Klaric, Zlatko"]
[Black "Gungl, Theo"]
[Result "1/2-1/2"]
[ECO "A06"]
[WhiteElo "2397"]
[BlackElo "2237"]
[Annotator "NA"]
[PlyCount "127"]
[EventDate "2018.06.12"]
[EventType "swiss"]
[EventCountry "HUN"]
[SourceTitle "playchess.com"]
[Source "ChessBase"]
[SourceQuality "1"]
[TimeControl "40/5400+30:1800+30"]

1. Nf3 {[%emt 0:01:29]} d5 {[%emt 0:00:36]} 2. b4 {[%emt 0:00:04]} Nf6 {[%emt 0:01:12]} 3. Bb2 {[%emt 0:00:07]} e6 {[%emt 0:01:49]} 4. a3 {[%emt 0:00:05]} Nbd7 {[%emt 0:01:20]} 5. e3 {[%emt 0:00:11] A00: Irregular Openings} Bd6 {[%emt 0:00:51]} 6. c4 {[%emt 0:00:43]} c6 {[%emt 0:01:17]} 7. d4 {[%emt 0:08:11]} Ne4 {[%emt 0:07:50]} (7... O-O 8. Nbd2 Qe7 9. Qc2 e5 10. cxd5 cxd5 11. dxe5 Nxe5 12. Be2 Bg4 13. O-O Rac8 {½-½ (13) Mirzoev,A (2617)-Lopez Martinez,J (2589) Pamplona 2009}) 8. Nbd2 {[%emt 0:01:23]} f5 {[%emt 0:02:21]} 9. Ne5 $146 {[%emt 0:05:09]} ({Predecessor:} 9. g3 O-O 10. c5 Bc7 11. Bg2 Qf6 12. O-O Qh6 {1-0 (38) Tosic,M (2489)-Panic,N (2347) Obrenovac 2004}) 9... O-O {[%emt 0:01:35]} 10. g3 {[%emt 0:00:29]} Bc7 {[%emt 0:19:17]} 11. f3 {[%emt 0:01:45]} Nxd2 {[%emt 0:05:15]} 12. Qxd2 {[%emt 0:00:09]} Nxe5 {[%emt 0:01:10]} 13. dxe5 {[%emt 0:00:11]} dxc4 {[%emt 0:00:49]} 14. Bxc4 {[%emt 0:04:00]} Qxd2+ {[%emt 0:00:30]} 15. Kxd2 {[%emt 0:00:02]} Bd7 {[%emt 0:01:50]} 16. Ke2 {[%emt 0:03:57]} Rad8 {[%emt 0:01:27]} 17. f4 {[%emt 0:01:15]} Kf7 {[%emt 0:01:32]} 18. Bd4 {[%emt 0:00:29]} b6 {[%emt 0:01:26]} 19. g4 {[%emt 0:03:42]} (19. Rhd1 $16) 19... g6 {[%emt 0:01:34]} 20. h4 {[%emt 0:00:46]} ({White should try} 20. h3 $16) 20... Bc8 {[%emt 0:13:37]} 21. h5 {[%emt 0:02:43]} Rh8 {[%emt 0:00:13]} 22. Rac1 {[%emt 0:08:35]} Bb8 {[%emt 0:10:20]} 23. Bb3 {[%emt 0:01:00]} Bb7 {[%emt 0:02:13]} 24. Rh4 {[%emt 0:01:44]} Rdg8 {[%emt 0:05:33]} 25. hxg6+ {[%emt 0:14:04]} hxg6 {[%emt 0:00:17]} 26. Rch1 {[%emt 0:00:11]} Rxh4 {[%emt 0:00:11]} 27. Rxh4 {[%emt 0:00:02]} Bc8 {[%emt 0:00:44]} 28. e4 {[%emt 0:02:13]} fxe4 {[%emt 0:03:18]} 29. f5 {[%emt 0:02:12]} gxf5 {[%emt 0:03:43]} 30. gxf5 {[%emt 0:01:10]} Rd8 {[%emt 0:05:04]} 31. Rxe4 {[%emt 0:02:33]} Ke7 {[%emt 0:01:23]} 32. f6+ {[%emt 0:02:16]} Kf7 {[%emt 0:00:34]} 33. Rg4 {[%emt 0:03:21]} Rxd4 {[%emt 0:02:14]} 34. Rxd4 {[%emt 0:00:11]} Bxe5 {[%emt 0:00:03]} 35. Rd8 {[%emt 0:00:18]} Ba6+ {[%emt 0:00:02]} 36. Ke3 {[%emt 0:03:03]} Kxf6 {[%emt 0:01:58]} 37. Ra8 {[%emt 0:00:25]} Bc3 {[%emt 0:01:29]} 38. Rxa7 {[%emt 0:00:38]} Bf1 {[%emt 0:00:27]} 39. Rb7 {[%emt 0:05:47]} b5 {[%emt 0:00:42]} 40. Bd1 {[%emt 0:00:00]} Bg2 {[%emt 0:01:21]} 41. Bf3 {[%emt 0:03:56]} Bxf3 {[%emt 0:00:09]} 42. Kxf3 {[%emt 0:00:10]} Ke5 {[%emt 0:03:55]} 43. Rd7 {[%emt 0:00:14]} Bb2 {[%emt 0:00:23]} 44. Rd3 {[%emt 0:00:11]} Bd4 {[%emt 0:00:25]} 45. Ke2 {[%emt 0:03:13]} Kd5 {[%emt 0:00:16]} 46. Rh3 {[%emt 0:03:18]} Kc4 {[%emt 0:02:03]} 47. Kd2 {[%emt 0:00:19]} e5 $11 {[%emt 0:03:22]} 48. Kc2 {[%emt 0:00:28]} c5 {[%emt 0:04:17]} 49. bxc5 {[%emt 0:02:37]} Bxc5 {[%emt 0:00:08]} 50. Rh4+ {[%emt 0:01:34]} Bd4 {[%emt 0:00:20]} 51. Rh8 {[%emt 0:01:46]} Bc5 {[%emt 0:03:51]} 52. Rh4+ {[%emt 0:04:05]} Bd4 {[%emt 0:00:07]} 53. Rh3 {[%emt 0:00:17]} Bc5 {[%emt 0:02:44]} 54. Rb3 {[%emt 0:00:29]} e4 {[%emt 0:01:37]} 55. Rc3+ {[%emt 0:01:19]} Kd4 {[%emt 0:00:11]} 56. Rb3 {[%emt 0:00:32]} Kc4 {[%emt 0:00:04]} 57. Rh3 {[%emt 0:00:29]} b4 {[%emt 0:01:24]} 58. a4 {[%emt 0:02:13]} e3 {[%emt 0:00:26]} 59. Rh4+ {[%emt 0:03:53]} Bd4 {[%emt 0:00:18]} 60. a5 {[%emt 0:02:00]} b3+ {[%emt 0:00:08]} 61. Kb1 {[%emt 0:04:43]} e2 {[%emt 0:06:26]} 62. Rh1 {[%emt 0:00:08]} Kd3 {[%emt 0:01:25]} 63. a6 {[%emt 0:00:06]} Kd2 {[%emt 0:00:17]} 64. Rh2 {[%emt 0:00:08]} 1/2-1/2